fUST/lending_fUST_20250409
["ID","MTS","AMOUNT","RATE_DAILY","PERIOD"]
[357543717,1744134641383,-1856.267199,0.00021487,2]
[357543718,1744134641394,-151.00000001,0.00021496,2]
[357543719,1744134641404,-200.0,0.00021496,2]
[357543720,1744134641414,-1856.267199,0.00021509,2]
[357543721,1744134641424,-1856.267199,0.00021509,2]
[357543722,1744134641436,-370000.0,0.00021509,2]
[357543723,1744134641446,-500.0,0.00021573,2]
[357543724,1744134641456,-500.0,0.00021573,2]
[357543725,1744134641466,-500.0,0.00021573,2]
[357543726,1744134641476,-164.25860137,0.00021573,2]
[357543727,1744134641487,-430.33191651,0.00021573,2]
[357543728,1744134641496,-500.0,0.00021573,2]
[357543729,1744134641506,-500.0,0.00021573,2]
[357543730,1744134641516,-500.0,0.00021573,2]
[357543731,1744134641525,-500.0,0.00021573,2]
[357543732,1744134641535,-501.97666393,0.00021573,2]
[357543733,1744134641545,-260.5167328,0.00021573,2]
[357543734,1744134641555,-160.0,0.00021573,2]
[357543735,1744134641565,-500.0,0.00021573,2]
[357543736,1744134641574,-500.0,0.00021573,2]
[357543737,1744134641584,-500.0,0.00021573,2]
[357543738,1744134641594,-501.90642249,0.00021573,2]
[357543739,1744134641605,-501.31126814,0.00021573,2]
[357543740,1744134641621,-502.07304544,0.00021573,2]
[357543741,1744134641632,-500.0,0.00021573,2]
[357543742,1744134641643,-500.0,0.00021573,2]
[357543743,1744134641654,-503.63354643,0.00021573,2]
[357543744,1744134641665,-615.16376688,0.00021573,2]
[357543745,1744134641676,-500.0,0.00021573,2]
[357543746,1744134641693,-500.0,0.00021573,2]
[357543747,1744134641705,-500.0,0.00021573,2]
[357543748,1744134641716,-501.06796866,0.00021573,2]
[357543749,1744134641726,-500.0,0.00021573,2]
[357543750,1744134641738,-500.03748936,0.00021573,2]
[357543751,1744134641748,-500.0,0.00021573,2]
[357543752,1744134641759,-500.0,0.00021573,2]
[357543753,1744134641770,-500.63505816,0.00021573,2]
[357543754,1744134641781,-500.0,0.00021573,2]
[357543755,1744134641793,-593.05159071,0.00021573,2]
[357543756,1744134641804,-500.0,0.00021573,2]
[357543757,1744134641815,-301.64419783,0.00021573,2]
[357543758,1744134641826,-2691.7,0.0002161,2]
[357543759,1744134641837,-41686.79212726,0.00021641,2]
[357543760,1744134641848,-40461.04103644,0.0002186,2]
[357543761,1744134641859,-5074.4403126,0.00021918,2]
[357543762,1744134641870,-200.0,0.00022762,2]
[357543763,1744134641881,-40461.04103644,0.00022831,2]
[357543764,1744134641892,-207.4,0.00022865,2]
[357543765,1744134641903,-4047.63576688,0.000229,4]
[357543766,1744134642027,-500.0,0.0002298,2]
[357543767,1744134642038,-500.0,0.0002298,2]
[357543768,1744134642048,-151.0,0.00022999,2]
[357543769,1744134642058,-151.0,0.00022999,2]
[357543770,1744134642068,-81674.58537752,0.00023,2]
[357543771,1744134642078,-396.9,0.00023,2]
[357543772,1744134642088,-76961.90073581,0.00023,2]
[357543773,1744134642098,-513.0,0.00023,2]
[357543774,1744134642108,-1856.267199,0.00023,2]
[357543775,1744134642118,-1856.267199,0.00023,2]
[357543776,1744134642127,-1856.267199,0.00023,2]
[357543777,1744134642137,-1856.26719022,0.00023,2]
[357543778,1744134642147,-419.46366559,0.00023,3]
[357543779,1744134642157,-202.89924348,0.00023,2]
[357543780,1744134642167,-160.0,0.00023,3]
[357543781,1744134642176,-587.0,0.00023186,2]
[357543782,1744134642191,-3145.78626458,0.000234,2]
[357543783,1744134642204,-40461.04103644,0.00023802,2]
[357543784,1744134642214,-984.6657175,0.00023994,2]
[357543785,1744134642223,-17000.0,0.00024,90]
[357543786,1744134642233,-4047.63576663,0.00024038,5]
[357543787,1744134642243,-151.0,0.000241,7]
[357543788,1744134642253,-200.0,0.00024132,2]
[357543789,1744134642262,-215.0738,0.00024234,2]
[357543790,1744134642272,-1948.31654698,0.00024276,2]
[357543791,1744134642282,-151.0,0.000244,6]
[357543792,1744134642292,-1672.57785595,0.0002449,2]
[357543793,1744134642301,-152.32564,0.00024658,7]
[357543794,1744134642311,-144090.40671963,0.00024737,2]
[357543795,1744134642320,-40461.04103644,0.00024773,2]
[357543796,1744134642329,-542.46611546,0.00024787,2]
[357543797,1744134642339,-500.0,0.00024873,2]
[357543798,1744134642349,-500.0,0.00024873,2]
[357543799,1744134642358,-500.0,0.00024873,2]
[357543800,1744134642368,-500.0,0.00024873,2]
[357543801,1744134642378,-501.43095951,0.00024873,2]
[357543802,1744134642387,-500.0,0.00024873,2]
[357543803,1744134642396,-500.0,0.00024873,2]
[357543804,1744134642406,-150.16802362,0.00024873,2]
[357543805,1744134642416,-187062.05439033,0.000249,2]
[357543806,1744134642433,-3389.80497274,0.000249,2]
[357543807,1744134642445,-23827.107206,0.000249,2]
[357543808,1744134642749,-500.0,0.00020092,2]
[357543809,1744134642758,-80.837494,0.000249,2]
[357543810,1744134642770,-27565.31571646,0.000249,2]
[357543811,1744134642959,-228151.98415475,0.000249,2]
[357543872,1744134643883,-151.0,0.00022999,2]
[357543873,1744134643893,-1209.503553,0.000247,2]
[357543874,1744134643903,-187.59125274,0.000249,2]
[357543953,1744134646796,-151.0,0.00024899,2]
[357543954,1744134646806,-151.0,0.00024899,2]
[357543955,1744134646816,-425.37735502,0.000249,2]
[357543983,1744135832690,-293.36455646,0.0002088,2]
[357543986,1744135832802,-2258.58196867,0.0002088,2]
[357544054,1744135838835,-3134.78542588,0.0002088,2]
[357544071,1744135839003,-740.8,0.0002088,2]
[357544073,1744135839015,-5922.85626409,0.0002088,2]
[357544075,1744135839025,-9460.0369173,0.00021164,2]
[357544077,1744135839034,-300.0,0.00021372,2]
[357544079,1744135839044,-2804.76038504,0.00021373,2]
[357544081,1744135839054,-500.0,0.00021473,2]
[357544083,1744135839064,-500.0,0.00021473,2]
[357544085,1744135839073,-260.96275003,0.00021473,2]
[357544087,1744135839084,-199.22160167,0.00021473,2]
[357544089,1744135839094,-753.09705082,0.00021473,2]
[357544091,1744135839103,-250.0,0.00021546,2]
[357544093,1744135839113,-200.0,0.00021917,2]
[357544095,1744135839123,-151.0,0.0002208,2]
[357544097,1744135839133,-151.0,0.0002208,2]
[357544099,1744135839143,-151.0,0.0002208,2]
[357544101,1744135839152,-151.0,0.0002208,2]
[357544103,1744135839162,-151.0,0.0002208,2]
[357544105,1744135839172,-151.0,0.0002208,2]
[357544107,1744135839182,-151.0,0.0002208,2]
[357544109,1744135839191,-17528.59503106,0.00022094,2]
[357544111,1744135839203,-7371.40496894,0.00022094,2]
[357544113,1744135839212,-14449.16527144,0.00022168,2]
[357544115,1744135839222,-426.2525228,0.00022168,2]
[357544117,1744135839232,-589.365299,0.00022479,2]
[357544119,1744135839244,-152.0,0.00022935,2]
[357544121,1744135839254,-420.0,0.00023239,2]
[357544123,1744135839264,-200.0,0.00023287,2]
[357544125,1744135839273,-162.669405,0.00023485,2]
[357544127,1744135839282,-162.669405,0.00023514,2]
[357544132,1744135839420,-10000.0,0.00023536,2]
[357544133,1744135839430,-162.669405,0.00023544,2]
[357544134,1744135839440,-162.669405,0.00023573,2]
[357544135,1744135839450,-162.669405,0.00023602,2]
[357544136,1744135839460,-172.509686,0.00023687,2]
[357544137,1744135839469,-1013.0323373,0.0002395,2]
[357544138,1744135839479,-700.85,0.00023979,3]
[357544139,1744135839491,-213.43914816,0.00023989,2]
[357544140,1744135839502,-500.0,0.00023989,2]
[357544141,1744135839512,-500.0,0.00023989,2]
[357544142,1744135839525,-500.0,0.00023989,2]
[357544143,1744135839535,-500.0,0.00023989,2]
[357544144,1744135839544,-500.0,0.00023989,2]
[357544145,1744135839554,-500.0,0.00023989,2]
[357544146,1744135839564,-518.33021734,0.00023989,2]
[357544147,1744135839573,-500.0,0.00023989,2]
[357544148,1744135839583,-500.0,0.00023989,2]
[357544149,1744135839592,-500.0,0.00023989,2]
[357544150,1744135839603,-500.0,0.00023989,2]
[357544151,1744135839615,-500.0,0.00023989,2]
[357544152,1744135839625,-500.0,0.00023989,2]
[357544153,1744135839634,-500.0,0.00023989,2]
[357544155,1744135839643,-500.0,0.00023989,2]
[357544156,1744135839654,-500.0,0.00023989,2]
[357544158,1744135839664,-500.0,0.00023989,2]
[357544160,1744135839673,-500.0,0.00023989,2]
[357544162,1744135839683,-500.0,0.00023989,2]
[357544164,1744135839694,-500.0,0.00023989,2]
[357544166,1744135839704,-500.0,0.00023989,2]
[357544168,1744135839713,-500.0,0.00023989,2]
[357544170,1744135839723,-500.0,0.00023989,2]
[357544172,1744135839732,-500.0,0.00023989,2]
[357544174,1744135839744,-500.0,0.00023989,2]
[357544176,1744135839755,-500.0,0.00023989,2]
[357544178,1744135839767,-500.0,0.00023989,2]
[357544180,1744135839777,-500.0,0.00023989,2]
[357544182,1744135839786,-500.0,0.00023989,2]
[357544184,1744135839796,-500.0,0.00023989,2]
[357544186,1744135839805,-500.0,0.00023989,2]
[357544188,1744135839814,-500.0,0.00023989,2]
[357544190,1744135839823,-500.0,0.00023989,2]
[357544192,1744135839832,-500.0,0.00023989,2]
[357544194,1744135839841,-500.0,0.00023989,2]
[357544196,1744135839851,-500.0,0.00023989,2]
[357544198,1744135839861,-500.0,0.00023989,2]
[357544200,1744135839871,-500.0,0.00023989,2]
[357544202,1744135839881,-500.0,0.00023989,2]
[357544204,1744135839890,-500.0,0.00023989,2]
[357544206,1744135839900,-500.0,0.00023989,2]
[357544208,1744135839909,-500.0,0.00023989,2]
[357544210,1744135839918,-500.0,0.00023989,2]
[357544212,1744135839928,-500.0,0.00023989,2]
[357544214,1744135839938,-500.0,0.00023989,2]
[357544216,1744135839947,-500.0,0.00023989,2]
[357544218,1744135839957,-500.0,0.00023989,2]
[357544220,1744135839967,-500.0,0.00023989,2]
[357544222,1744135839976,-500.0,0.00023989,2]
[357544224,1744135839985,-340.09391455,0.00023989,2]
[357544226,1744135839998,-500.0,0.00023989,2]
[357544228,1744135840008,-500.0,0.00023989,2]
[357544230,1744135840018,-500.0,0.00023989,2]
[357544232,1744135840028,-500.0,0.00023989,2]
[357544234,1744135840038,-500.0,0.00023989,2]
[357544236,1744135840049,-500.0,0.00023989,2]
[357544238,1744135840059,-500.0,0.00023989,2]
[357544240,1744135840068,-500.0,0.00023989,2]
[357544242,1744135840078,-500.0,0.00023989,2]
[357544244,1744135840089,-500.0,0.00023989,2]
[357544246,1744135840099,-500.0,0.00023989,2]
[357544248,1744135840108,-500.0,0.00023989,2]
[357544250,1744135840118,-500.0,0.00023989,2]
[357544252,1744135840127,-500.0,0.00023989,2]
[357544254,1744135840137,-500.0,0.00023989,2]
[357544256,1744135840147,-500.0,0.00023989,2]
[357544259,1744135840156,-500.0,0.00023989,2]
[357544262,1744135840166,-500.0,0.00023989,2]
[357544265,1744135840175,-500.0,0.00023989,2]
[357544267,1744135840185,-500.0,0.00023989,2]
[357544269,1744135840195,-500.0,0.00023989,2]
[357544271,1744135840204,-500.0,0.00023989,2]
[357544273,1744135840214,-500.0,0.00023989,2]
[357544275,1744135840223,-500.0,0.00023989,2]
[357544276,1744135840233,-500.0,0.00023989,2]
[357544279,1744135840244,-500.0,0.00023989,2]
[357544281,1744135840253,-500.0,0.00023989,2]
[357544283,1744135840263,-500.0,0.00023989,2]
[357544284,1744135840273,-350.0,0.00023989,2]
[357544286,1744135840282,-500.0,0.00023989,2]
[357544288,1744135840292,-500.0,0.00023989,2]
[357544291,1744135840302,-500.0,0.00023989,2]
[357544293,1744135840312,-500.0,0.00023989,2]
[357544294,1744135840322,-500.0,0.00023989,2]
[357544296,1744135840333,-500.0,0.00023989,2]
[357544298,1744135840343,-5352.59910242,0.0002399,2]
[357544300,1744135840353,-738.4992882,0.00024152,2]
[357544302,1744135840363,-500.0,0.00024263,2]
[357544304,1744135840372,-200.0,0.00024657,2]
[357544307,1744135840382,-200.0,0.00024658,2]
[357544310,1744135840392,-163.95,0.00024799,2]
[357544313,1744135840401,-547.95332408,0.00024799,2]
[357544315,1744135840411,-408.65371782,0.00024851,2]
[357544317,1744135840421,-817.30743564,0.00024852,2]
[357544320,1744135840432,-151.0,0.00024858,2]
[357544321,1744135840441,-223.44716674,0.00024858,2]
[357544323,1744135840451,-200.0,0.00024858,2]
[357544325,1744135840460,-3269.22974256,0.00024863,2]
[357544327,1744135840471,-199.402,0.00024869,8]
[357544329,1744135840480,-1010.05033137,0.00024869,2]
[357544331,1744135840490,-1010.05033137,0.00024869,2]
[357544333,1744135840499,-1010.05033137,0.00024869,2]
[357544335,1744135840509,-1010.05033137,0.00024869,2]
[357544337,1744135840519,-1010.05033137,0.00024869,2]
[357544339,1744135840528,-1010.05033137,0.00024869,2]
[357544341,1744135840539,-1010.05033137,0.00024869,2]
[357544343,1744135840548,-1010.05033137,0.00024869,2]
[357544345,1744135840558,-626.97080448,0.00024869,2]
[357544348,1744135840571,-383.07952689,0.00024869,2]
[357544349,1744135840580,-1010.05033137,0.00024869,2]
[357544352,1744135840590,-404.62235383,0.00024872,2]
[357544354,1744135840600,-500.0,0.00024872,2]
[357544356,1744135840609,-500.0,0.00024872,2]
[357544358,1744135840622,-390.15661129,0.00024872,2]
[357544360,1744135840632,-500.0,0.00024872,2]
[357544362,1744135840641,-500.0,0.00024872,2]
[357544364,1744135840651,-500.0,0.00024872,2]
[357544366,1744135840663,-500.0,0.00024872,2]
[357544368,1744135840672,-500.0,0.00024873,2]
[357544370,1744135840682,-500.0,0.00024873,2]
[357544372,1744135840691,-500.0,0.00024873,2]
[357544374,1744135840701,-500.0,0.00024873,2]
[357544376,1744135840711,-500.0,0.00024873,2]
[357544378,1744135840720,-603.521637,0.00024873,2]
[357544380,1744135840729,-500.0,0.00024873,2]
[357544382,1744135840740,-500.0,0.00024873,2]
[357544384,1744135840750,-500.0,0.00024873,2]
[357544386,1744135840759,-500.0,0.00024873,2]
[357544388,1744135840768,-504.69515223,0.00024873,2]
[357544390,1744135840778,-160.94124664,0.00024873,2]
[357544392,1744135840787,-500.0,0.00024873,2]
[357544394,1744135840797,-500.0,0.00024873,2]
[357544396,1744135840806,-500.0,0.00024873,2]
[357544398,1744135840816,-265.25930081,0.00024873,2]
[357544400,1744135840826,-500.0,0.00024873,2]
[357544402,1744135840836,-534.44279293,0.00024873,2]
[357544404,1744135840845,-500.0,0.00024873,2]
[357544406,1744135840855,-500.54745208,0.00024873,2]
[357544408,1744135840865,-500.0,0.00024873,2]
[357544410,1744135840875,-500.0,0.00024873,2]
[357544411,1744135840886,-500.0,0.00024873,2]
[357544414,1744135840896,-500.0,0.00024873,2]
[357544415,1744135840906,-506.62258694,0.00024873,2]
[357544418,1744135840916,-500.0,0.00024873,2]
[357544419,1744135840925,-500.0,0.00024873,2]
[357544421,1744135840935,-500.0,0.00024873,2]
[357544424,1744135840945,-500.0,0.00024873,2]
[357544426,1744135840955,-500.0,0.00024873,2]
[357544427,1744135840965,-502.98440682,0.00024873,2]
[357544430,1744135840975,-253.37908764,0.00024873,2]
[357544432,1744135840985,-393.3050567,0.00024873,2]
[357544433,1744135840997,-500.0,0.00024873,2]
[357544436,1744135841007,-500.0,0.00024873,2]
[357544437,1744135841017,-103481.56365947,0.00024873,2]
[357544440,1744135841029,-266518.43634053,0.00024873,2]
[357544442,1744135841039,-151.0,0.00024899,2]
[357544444,1744135841049,-151.0,0.00024899,2]
[357544446,1744135841059,-1400.0,0.00024899,2]
[357544448,1744135841069,-400.0,0.000249,2]
[357544450,1744135841078,-188678.62264169,0.000249,2]
[357544480,1744135841366,-326.08177867,0.000249,2]
[357544764,1744135843950,-7162.27745307,0.00022068,2]
[357544766,1744135843960,-151.0,0.00024899,2]
[357544768,1744135843970,-18539.83434835,0.000249,2]
[357545124,1744135846905,-151.0,0.00024899,2]
[357545126,1744135846914,-151.0,0.00024899,2]
[357545128,1744135846924,-875.99039146,0.000249,2]
[357545130,1744135846936,-663.65607524,0.000249,2]
[357552538,1744137031961,-386.845,0.00019977,2]
[357552539,1744137031982,-3686.53973918,0.00019977,2]
[357552540,1744137031992,-4999.999999,0.0002,3]
[357552541,1744137032002,-199.22160167,0.00021064,2]
[357552542,1744137032013,-300.0,0.00021723,2]
[357552543,1744137032023,-785.100782,0.00021724,2]
[357552544,1744137032033,-401.1590645,0.00021752,2]
[357552545,1744137032043,-3300.8579121,0.00021752,2]
[357552546,1744137032054,-10000.0,0.00021777,2]
[357552547,1744137032065,-16383.71439258,0.00021849,2]
[357552548,1744137032079,-2258.99737925,0.00021849,2]
[357552549,1744137032097,-6257.28822817,0.00021849,2]
[357552550,1744137032107,-1899.56163081,0.000219,2]
[357552551,1744137032119,-403.8025,0.000219,2]
[357552571,1744137039177,-4310.39593584,0.000219,2]
[357552572,1744137039187,-163.95,0.00022192,2]
[357552573,1744137039197,-466.64718391,0.00022832,2]
[357552574,1744137039207,-337.0966198,0.00022904,2]
[357552575,1744137039217,-4819.3124925,0.00022904,2]
[357552576,1744137039226,-203.097768,0.00023,2]
[357552577,1744137039239,-1133.28563498,0.00023,2]
[357552633,1744137044539,-322.0,0.00022,2]
[357552634,1744137044549,-322.0,0.00022192,2]
[357552635,1744137044559,-471.47264419,0.00023,2]
[357552636,1744137044569,-322.0,0.00023014,2]
[357552637,1744137044579,-1367.2957389,0.00023033,2]
[357552638,1744137044589,-533.25603351,0.00023373,2]
[357552639,1744137044599,-151.0,0.00023422,2]
[357552640,1744137044609,-200.0,0.00023422,2]
[357552641,1744137044619,-500.0,0.00023433,2]
[357552642,1744137044629,-500.0,0.00023433,2]
[357552643,1744137044642,-500.0,0.00023433,2]
[357552644,1744137044652,-500.0,0.00023433,2]
[357552645,1744137044662,-500.0,0.00023433,2]
[357552646,1744137044672,-500.0,0.00023433,2]
[357552647,1744137044682,-163.15375598,0.00023433,2]
[357552648,1744137044747,-336.84624402,0.00023433,2]
[357552649,1744137044758,-285.42521398,0.00023433,2]
[357552650,1744137044768,-500.0,0.00023433,2]
[357552651,1744137044778,-500.0,0.00023433,2]
[357552652,1744137044788,-500.0,0.00023433,2]
[357552653,1744137044798,-500.0,0.00023433,2]
[357552655,1744137044808,-500.0,0.00023433,2]
[357552657,1744137044817,-500.0,0.00023433,2]
[357552659,1744137044827,-500.0,0.00023433,2]
[357552661,1744137044837,-500.0,0.00023433,2]
[357552662,1744137044846,-500.0,0.00023433,2]
[357552663,1744137044856,-500.0,0.00023433,2]
[357552664,1744137044994,-500.0,0.00023433,2]
[357552665,1744137045005,-500.0,0.00023433,2]
[357552666,1744137045017,-500.0,0.00023433,2]
[357552667,1744137045027,-500.0,0.00023433,2]
[357552668,1744137045037,-500.0,0.00023433,2]
[357552669,1744137045048,-500.0,0.00023433,2]
[357552670,1744137045058,-500.0,0.00023433,2]
[357552671,1744137045068,-500.0,0.00023433,2]
[357552672,1744137045077,-500.0,0.00023433,2]
[357552673,1744137045087,-500.0,0.00023433,2]
[357552674,1744137045098,-588.5,0.00023433,2]
[357552675,1744137045108,-500.0,0.00023433,2]
[357552676,1744137045118,-500.0,0.00023433,2]
[357552677,1744137045128,-500.0,0.00023433,2]
[357552678,1744137045142,-500.0,0.00023433,2]
[357552679,1744137045153,-500.0,0.00023433,2]
[357552680,1744137045163,-500.0,0.00023433,2]
[357552681,1744137045173,-500.0,0.00023433,2]
[357552682,1744137045183,-500.0,0.00023433,2]
[357552683,1744137045205,-500.0,0.00023433,2]
[357552684,1744137045216,-500.0,0.00023433,2]
[357552685,1744137045228,-500.0,0.00023433,2]
[357552686,1744137045239,-500.0,0.00023433,2]
[357552687,1744137045249,-500.0,0.00023433,2]
[357552688,1744137045261,-500.0,0.00023433,2]
[357552689,1744137045273,-500.0,0.00023433,2]
[357552690,1744137045285,-500.0,0.00023433,2]
[357552691,1744137045297,-500.0,0.00023433,2]
[357552692,1744137045307,-500.0,0.00023433,2]
[357552693,1744137045319,-500.0,0.00023433,2]
[357552694,1744137045329,-500.0,0.00023433,2]
[357552695,1744137045340,-500.0,0.00023433,2]
[357552696,1744137045350,-500.0,0.00023433,2]
[357552697,1744137045361,-500.0,0.00023433,2]
[357552698,1744137045371,-436.63307645,0.00023433,2]
[357552714,1744137046419,-63.36692355,0.00023433,2]
[357552715,1744137046431,-500.0,0.00023433,2]
[357552716,1744137046441,-500.0,0.00023433,2]
[357552717,1744137046452,-500.0,0.00023433,2]
[357552718,1744137046462,-500.0,0.00023433,2]
[357552719,1744137046473,-500.0,0.00023433,2]
[357552720,1744137046483,-500.0,0.00023433,2]
[357552721,1744137046494,-500.0,0.00023433,2]
[357552722,1744137046504,-619.07025301,0.00023433,2]
[357552723,1744137046514,-500.0,0.00023433,2]
[357552724,1744137046524,-500.0,0.00023433,2]
[357552725,1744137046534,-500.0,0.00023435,2]
[357552726,1744137046544,-500.0,0.00023435,2]
[357552727,1744137046554,-283.23564768,0.00023435,2]
[357552728,1744137046564,-500.0,0.00023435,2]
[357552729,1744137046575,-500.0,0.00023435,2]
[357552730,1744137046585,-500.0,0.00023435,2]
[357552731,1744137046596,-500.0,0.00023435,2]
[357552732,1744137046606,-263.45427256,0.00023435,2]
[357552733,1744137046616,-200.0,0.00023435,2]
[357552734,1744137046625,-17638.3109844,0.00023436,2]
[357552735,1744137165662,200.0,0.0002,120]
[357552740,1744137942704,-529.002145,0.00021368,2]
[357552741,1744137942745,-512.684065,0.00021441,2]
[357552742,1744137942788,-2837.2764544,0.00021538,2]
[357552743,1744137942831,-1894.12447527,0.000217,2]
[357552744,1744137942873,-202.0,0.00022,2]
[357552745,1744137942917,-300.0,0.00022055,2]
[357552746,1744137942962,-2839.91286033,0.00022056,2]
[357552747,1744137992050,-3492.0,0.00022056,2]
[357552780,1744138232016,-250.0,0.00021563,2]
[357552782,1744138232027,-250.0,0.00021956,2]
[357552784,1744138232036,-250.0,0.00021956,2]
[357552786,1744138232046,-1000.0,0.00022,2]
[357552788,1744138232055,-176.0,0.00022,2]
[357552790,1744138232065,-300.0,0.00022035,2]
[357552792,1744138232075,-24900.0,0.00022036,2]
[357552794,1744138232086,-3668.08713967,0.00022056,2]
[357552795,1744138232095,-5787.04005838,0.00022092,2]
[357552796,1744138232106,-176.0,0.00022192,2]
[357552797,1744138232115,-24940.34271989,0.0002299,2]
[357552799,1744138232127,-1491.50262115,0.0002299,2]
[357552801,1744138232148,-470.15508841,0.0002299,2]
[357552803,1744138232158,-318.95361338,0.00023013,2]
[357552805,1744138232167,-163.95,0.00023014,2]
[357552807,1744138232176,-176.0,0.00023014,2]
[357552808,1744138232186,-22863.04805101,0.00023236,2]
[357552809,1744138232200,-767.64269443,0.00023236,2]
[357552810,1744138232210,-151.0,0.00023322,2]
[357552811,1744138232220,-151.0,0.00023322,2]
[357552812,1744138232230,-151.0,0.00023322,2]
[357552813,1744138232240,-151.0,0.00023322,2]
[357552814,1744138232249,-151.0,0.00023322,2]
[357552815,1744138232260,-151.0,0.00023322,2]
[357552816,1744138232270,-151.0,0.00023322,2]
[357552817,1744138232280,-151.0,0.00023322,2]
[357552818,1744138232289,-151.0,0.00023322,2]
[357552819,1744138232299,-151.0,0.00023322,2]
[357552820,1744138232309,-151.0,0.00023322,2]
[357552821,1744138232319,-151.0,0.00023322,2]
[357552822,1744138232329,-200.0,0.00023322,2]
[357552823,1744138232338,-220.24,0.00023325,3]
[357552824,1744138232348,-660.73,0.00023325,3]
[357552825,1744138232357,-179.61,0.00023325,3]
[357552827,1744138232375,-642.82502378,0.00023334,2]
[357552828,1744138232384,-500.0,0.00023334,2]
[357552829,1744138232394,-500.0,0.00023334,2]
[357552830,1744138232404,-500.0,0.00023334,2]
[357552831,1744138232415,-500.0,0.00023334,2]
[357552832,1744138232424,-176.5,0.00023334,2]
[357552833,1744138232434,-500.0,0.00023334,2]
[357552834,1744138232447,-500.0,0.00023334,2]
[357552835,1744138232458,-500.0,0.00023334,2]
[357552836,1744138232467,-500.0,0.00023334,2]
[357552837,1744138232478,-500.0,0.00023334,2]
[357552838,1744138232487,-241.18410613,0.00023334,2]
[357552839,1744138232496,-500.0,0.00023334,2]
[357552840,1744138232506,-500.0,0.00023334,2]
[357552841,1744138232519,-500.0,0.00023334,2]
[357552842,1744138232529,-198.26495337,0.00023335,2]
[357552843,1744138232539,-500.0,0.00023335,2]
[357552844,1744138232549,-434.41799079,0.00023335,2]
[357552845,1744138232558,-500.0,0.00023335,2]
[357552846,1744138232569,-500.0,0.00023335,2]
[357552847,1744138232579,-6863.53180624,0.00023335,2]
[357552848,1744138232589,-4092.35428794,0.00023335,3]
[357552849,1744138232598,-6473.17697185,0.00023336,2]
[357552895,1744138238406,-363526.82302815,0.00023336,2]
[357552897,1744138238416,-199.22160167,0.00023336,2]
[357552899,1744138238426,-500.0,0.00023373,2]
[357552902,1744138238436,-271.00530948,0.00023373,2]
[357552903,1744138238448,-500.0,0.00023373,2]
[357552905,1744138238458,-621.92566902,0.00023373,2]
[357552907,1744138238617,-509.03641295,0.00023373,2]
[357552908,1744138238629,-442.25105193,0.00023373,2]
[357552909,1744138238642,-57.74894807,0.00023373,2]
[357552910,1744138238652,-501.98544014,0.00023373,2]
[357552911,1744138238662,-500.66085394,0.00023373,2]
[357552912,1744138238673,-500.0,0.00023373,2]
[357552913,1744138238683,-315.12588203,0.00023373,2]
[357552914,1744138238693,-534.42295704,0.00023373,2]
[357552915,1744138238710,-500.0,0.00023373,2]
[357552916,1744138238720,-280.48755935,0.00023373,2]
[357552917,1744138238730,-500.0,0.00023373,2]
[357552918,1744138238739,-500.0,0.00023373,2]
[357552919,1744138238749,-160.08624685,0.00023373,2]
[357552920,1744138238759,-500.0,0.00023373,2]
[357552921,1744138238768,-500.0,0.00023373,2]